fUSD/lending_fUSD_20240526
["ID","MTS","AMOUNT","RATE_DAILY","PERIOD"]
[327990994,1716763847038,-151.0,0.00025,7]
[327990995,1716763847047,-160.0,0.00025,2]
[327990996,1716763847056,-214.407712,0.00025,7]
[327990997,1716763847066,-151.0,0.00025,7]
[327990998,1716763847075,-151.0,0.00025,7]
[327990999,1716763847086,-1150.0,0.00025,2]
[327991000,1716763847096,-151.0,0.00025,7]
[327991001,1716763847105,-300.0,0.00025,7]
[327991002,1716763847114,-151.0,0.00025,7]
[327991003,1716763847124,-250.484076,0.00025,2]
[327991004,1716763847133,-545.827251,0.00025,7]
[327991005,1716763847143,-545.827251,0.00025,7]
[327991006,1716763847152,-151.0,0.00025,7]
[327991007,1716763847161,-371.595041,0.00025,7]
[327991008,1716763847170,-371.595041,0.00025,7]
[327991009,1716763847180,-151.0,0.00025,7]
[327991010,1716763847189,-1239.6227,0.00025,2]
[327991011,1716763847198,-3079.7521,0.00025,2]
[327991012,1716763847207,-151.0,0.00025,7]
[327991013,1716763847216,-1301.26637,0.00025,7]
[327991014,1716763847225,-1301.26637,0.00025,7]
[327991015,1716763847235,-151.0,0.00025,7]
[327991016,1716763847244,-151.0,0.00025,7]
[327991017,1716763847255,-276.60829832,0.00025118,2]
[327991018,1716763847264,-6530.20310698,0.00025173,2]
[327991019,1716763847274,-153.56431096,0.00025199,2]
[327991020,1716763847283,-1000.0,0.00025205,2]
[327991021,1716763847292,-155.03078473,0.00025282,2]
[327991022,1716763847301,-156.26787985,0.00025334,2]
[327991023,1716763847311,-153.56431096,0.00025349,2]
[327991024,1716763847320,-1700.27630279,0.00025396,2]
[327991025,1716763847329,-6656.68059469,0.00025396,2]
[327991026,1716763847339,-383.94,0.00025435,2]
[327991027,1716763847348,-160.0772059,0.00025444,2]
[327991028,1716763847357,-694.98447913,0.00025466,2]
[327991029,1716763847366,-420.93,0.00025536,2]
[327991030,1716763847376,-150.0,0.00025536,2]
[327991031,1716763847385,-300.0,0.00025536,2]
[327991032,1716763847394,-163.54,0.00025536,2]
[327991033,1716763847407,-351.98,0.00025536,2]
[327991034,1716763847416,-155.03078473,0.00025659,2]
[327991035,1716763847425,-153.26912182,0.00025702,2]
[327991036,1716763847434,-197.8,0.00025709,5]
[327991037,1716763847444,-155.03078473,0.00025716,2]
[327991038,1716763847454,-155.03078473,0.00025736,2]
[327991039,1716763847463,-151.0,0.00025809,2]
[327991040,1716763847473,-163.36,0.0002589,2]
[327991041,1716763847484,-155.03078473,0.00025924,2]
[327991042,1716763847494,-156.26787985,0.00026019,2]
[327991043,1716763847503,-276.60829832,0.00026151,2]
[327991044,1716763847513,-158.52692095,0.00026339,2]
[327991045,1716763847523,-153.56431096,0.00026379,2]
[327991046,1716763847532,-276.60829832,0.000264,2]
[327991047,1716763847542,-742.0,0.000265,5]
[327991048,1716763847553,-154.36900518,0.000265,2]
[327991049,1716763847562,-153.56431096,0.00026509,2]
[327991050,1716763847572,-157.36422571,0.00026534,2]
[327991051,1716763847582,-626.54,0.000266,2]
[327991052,1716763847591,-155.47649457,0.00026659,2]
[327991053,1716763847600,-337.020382,0.000268,2]
[327991054,1716763847609,-505.530573,0.000268,2]
[327991055,1716763847618,-674.040764,0.000268,2]
[327991056,1716763847628,-842.550956,0.000268,2]
[327991057,1716763847638,-155.03078473,0.00026876,2]
[327991058,1716763847648,-154.0460557,0.00026879,2]
[327991059,1716763847657,-239.86,0.00026921,2]
[327991060,1716763847667,-253.96,0.00026921,2]
[327991061,1716763847677,-276.60829832,0.00026942,2]
[327991062,1716763847687,-1179.571338,0.00027,2]
[327991063,1716763847696,-1348.081529,0.00027,2]
[327991064,1716763847705,-49806.54268325,0.00027,3]
[327991065,1716763847715,-1200.0,0.00027,2]
[327991066,1716763847724,-150.0,0.00027,2]
[327991067,1716763847734,-500.0,0.00027006,2]
[327991068,1716763847743,-700.0,0.00027006,2]
[327991069,1716763847752,-155.645705,0.00027037,2]
[327991070,1716763847761,-233.468558,0.00027037,2]
[327991071,1716763847770,-183.896947,0.00027037,2]
[327991072,1716763847780,-186.015969,0.00027037,2]
[327991073,1716763847789,-255.679047,0.00027037,2]
[327991074,1716763847799,-181.501984,0.00027037,2]
[327991075,1716763847808,-184.468985,0.00027037,2]
[327991076,1716763847818,-154.43062866,0.00027092,2]
[327991077,1716763847828,-276.60829832,0.00027103,2]
[327991078,1716763847837,-154.46581357,0.00027214,2]
[327991079,1716763847847,-6530.20310698,0.00027218,2]
[327991080,1716763847856,-1529.94595031,0.00027281,7]
[327991081,1716763847865,-276.60829832,0.000273,2]
[327991082,1716763847875,-197.8,0.00027335,7]
[327991083,1716763847884,-155.645705,0.00027375,2]
[327991084,1716763847893,-233.468558,0.00027375,2]
[327991085,1716763847903,-255.679047,0.00027375,2]
[327991086,1716763847912,-181.501984,0.00027375,2]
[327991087,1716763847921,-805.18519156,0.0002739,2]
[327991088,1716763847931,-510.10260605,0.00027397,4]
[327991089,1716763847940,-505.30558933,0.00027397,4]
[327991090,1716763847950,-500.0,0.00027397,4]
[327991091,1716763847961,-393.26570393,0.00027397,4]
[327991092,1716763847970,-505.61807703,0.00027397,4]
[327991093,1716763847979,-510.33108431,0.00027397,4]
[327991094,1716763847990,-513.58436963,0.00027397,4]
[327991095,1716763848002,-506.33550735,0.00027397,4]
[327991096,1716763848012,-508.67126683,0.00027397,4]
[327991097,1716763848023,-509.92946616,0.00027397,4]
[327991098,1716763848035,-500.0,0.00027397,4]
[327991099,1716763848044,-508.9991739,0.00027397,4]
[327991100,1716763848054,-506.69606097,0.00027397,4]
[327991101,1716763848064,-446.8178927,0.00027397,4]
[327991102,1716763848074,-500.0,0.00027397,4]
[327991103,1716763848083,-506.36237778,0.00027397,4]
[327991104,1716763848094,-327.64847555,0.00027397,4]
[327991105,1716763848103,-506.09203068,0.00027397,4]
[327991106,1716763848113,-591.86921661,0.00027397,4]
[327991107,1716763848122,-505.04793414,0.00027397,4]
[327991108,1716763848131,-502.74890674,0.00027397,4]
[327991109,1716763848140,-500.0,0.00027397,4]
[327991110,1716763848150,-510.0704826,0.00027397,4]
[327991111,1716763848159,-506.92152388,0.00027397,4]
[327991112,1716763848168,-502.87462566,0.00027397,4]
[327991113,1716763848178,-514.34465389,0.00027397,4]
[327991114,1716763848187,-500.0,0.00027397,4]
[327991115,1716763848196,-453.29696932,0.00027397,4]
[327991116,1716763848205,-500.0,0.00027397,4]
[327991117,1716763848214,-500.0,0.00027397,4]
[327991118,1716763848223,-517.03656644,0.00027397,4]
[327991119,1716763848232,-509.36402015,0.00027397,4]
[327991120,1716763848241,-505.44827043,0.00027397,4]
[327991121,1716763848250,-524.21792872,0.00027397,4]
[327991122,1716763848290,-185.97843295,0.00027397,4]
[327991123,1716763848299,-519.64569145,0.00027397,4]
[327991124,1716763848309,-557.28887252,0.00027397,4]
[327991125,1716763848318,-504.29408699,0.00027397,4]
[327991126,1716763848328,-512.47942238,0.00027397,4]
[327991127,1716763848337,-503.70132109,0.00027397,4]
[327991128,1716763848347,-506.13340321,0.00027397,4]
[327991129,1716763848356,-498.58612246,0.00027397,4]
[327991130,1716763848365,-202.36606053,0.00027397,4]
[327991131,1716763848374,-498.0,0.00027397,4]
[327991132,1716763848383,-507.52044017,0.00027397,4]
[327991133,1716763848393,-503.03456336,0.00027397,4]
[327991134,1716763848404,-500.0,0.00027397,4]
[327991135,1716763848413,-500.0,0.00027397,4]
[327991136,1716763848422,-509.10458787,0.00027397,4]
[327991137,1716763848432,-506.01094025,0.00027397,4]
[327991138,1716763848442,-392.04685973,0.00027397,4]
[327991139,1716763848451,-508.3540807,0.00027397,4]
[327991140,1716763848460,-513.2258198,0.00027397,4]
[327991141,1716763848469,-514.49952524,0.00027397,4]
[327991142,1716763848480,-516.87640696,0.00027397,4]
[327991143,1716763848489,-511.71580897,0.00027397,4]
[327991144,1716763848499,-505.562411,0.00027397,4]
[327991145,1716763848508,-504.41633314,0.00027397,4]
[327991146,1716763848517,-506.60090842,0.00027397,4]
[327991147,1716763848526,-498.6502795,0.00027397,4]
[327991148,1716763848535,-507.09107012,0.00027397,4]
[327991149,1716763848544,-169.99106151,0.00027397,4]
[327991150,1716763848553,-343.2230645,0.00027397,4]
[327991151,1716763848563,-503.10527079,0.00027397,4]
[327991152,1716763848572,-500.0,0.00027397,4]
[327991153,1716763848581,-560.38935021,0.00027397,4]
[327991154,1716763848591,-514.37378516,0.00027397,4]
[327991155,1716763848600,-515.32842763,0.00027397,4]
[327991156,1716763848609,-521.36345733,0.00027397,4]
[327991157,1716763848619,-505.81689266,0.00027397,4]
[327991158,1716763848628,-508.18930495,0.00027397,4]
[327991159,1716763848638,-505.52682262,0.00027397,4]
[327991160,1716763848649,-534.14647068,0.00027397,4]
[327991161,1716763848658,-514.75232569,0.00027397,4]
[327991162,1716763848667,-239.65182353,0.00027397,4]
[327991163,1716763848676,-508.93622524,0.00027397,4]
[327991164,1716763848686,-500.0,0.00027397,4]
[327991165,1716763848695,-542.08449023,0.00027397,4]
[327991166,1716763848705,-500.0,0.00027397,4]
[327991167,1716763848714,-508.09421464,0.00027397,4]
[327991168,1716763848726,-506.74832019,0.00027397,4]
[327991169,1716763848735,-500.0,0.00027397,4]
[327991170,1716763848744,-500.0,0.00027397,4]
[327991171,1716763848753,-518.72067271,0.00027397,4]
[327991172,1716763848763,-506.37289231,0.00027397,4]
[327991173,1716763848772,-522.24806096,0.00027397,4]
[327991174,1716763848781,-505.06551054,0.00027397,4]
[327991175,1716763848791,-513.98700474,0.00027397,4]
[327991176,1716763848799,-151.0,0.00027397,7]
[327991177,1716763848809,-151.0,0.00027397,7]
[327991178,1716763848818,-529.93820721,0.00027397,4]
[327991179,1716763848829,-520.1602515,0.00027397,4]
[327991180,1716763848838,-526.20064568,0.00027397,4]
[327991181,1716763848847,-500.0,0.00027397,4]
[327991182,1716763848857,-500.0,0.00027397,4]
[327991183,1716763848866,-500.0,0.00027397,4]
[327991184,1716763848875,-500.0,0.00027397,4]
[327991185,1716763848885,-500.0,0.00027397,4]
[327991186,1716763848894,-519.42,0.00027397,4]
[327991187,1716763848904,-558.04576042,0.00027397,4]
[327991188,1716763848913,-500.0,0.00027397,4]
[327991189,1716763848922,-500.0,0.00027397,4]
[327991190,1716763848931,-500.0,0.00027397,4]
[327991191,1716763848941,-525.98,0.00027397,4]
[327991192,1716763848950,-515.48688661,0.00027397,4]
[327991193,1716763848959,-500.0,0.00027397,4]
[327991194,1716763848968,-500.0,0.00027397,4]
[327991195,1716763848978,-500.0,0.00027397,4]
[327991196,1716763848987,-500.0,0.00027397,4]
[327991197,1716763848996,-500.0,0.00027397,4]
[327991198,1716763849005,-500.0,0.00027397,4]
[327991199,1716763849015,-500.0,0.00027397,4]
[327991200,1716763849024,-441.09892556,0.00027397,4]
[327991201,1716763849033,-518.20856067,0.00027397,4]
[327991202,1716763849043,-621.29,0.00027397,4]
[327991203,1716763849052,-600.42,0.00027397,4]
[327991204,1716763849061,-500.0,0.00027397,4]
[327991205,1716763849071,-500.0,0.00027397,4]
[327991206,1716763849083,-574.21,0.00027397,4]
[327991207,1716763849093,-500.0,0.00027397,4]
[327991208,1716763849105,-500.0,0.00027397,4]
[327991209,1716763849114,-500.0,0.00027397,4]
[327991210,1716763849123,-635.76,0.00027397,4]
[327991211,1716763849133,-500.0,0.00027397,4]
[327991212,1716763849142,-500.0,0.00027397,4]
[327991213,1716763849151,-500.0,0.00027397,4]
[327991214,1716763849160,-155.0,0.00027397,4]
[327991215,1716763849169,-500.0,0.00027397,4]
[327991216,1716763849178,-500.0,0.00027397,4]
[327991217,1716763849187,-184.42,0.00027397,4]
[327991218,1716763849197,-500.0,0.00027397,4]
[327991219,1716763849205,-500.0,0.00027397,4]
[327991220,1716763849214,-500.0,0.00027397,4]
[327991221,1716763849223,-500.0,0.00027397,4]
[327991222,1716763849232,-500.0,0.00027397,4]
[327991223,1716763849241,-500.0,0.00027397,4]
[327991224,1716763849250,-500.0,0.00027397,4]
[327991225,1716763849259,-500.0,0.00027397,4]
[327991226,1716763849268,-551.67,0.00027397,4]
[327991227,1716763849277,-500.0,0.00027397,4]
[327991228,1716763849286,-500.0,0.00027397,4]
[327991229,1716763849296,-525.02853793,0.00027397,4]
[327991230,1716763849305,-499.24522781,0.00027397,4]
[327991231,1716763849315,-500.0,0.00027397,4]
[327991232,1716763849325,-500.0,0.00027397,4]
[327991233,1716763849334,-500.0,0.00027397,4]
[327991234,1716763849343,-500.0,0.00027397,4]
[327991235,1716763849352,-203.77466981,0.00027397,4]
[327991236,1716763849361,-500.0,0.00027397,4]
[327991237,1716763849370,-500.0,0.00027397,4]
[327991238,1716763849379,-500.0,0.00027397,4]
[327991239,1716763849389,-500.0,0.00027397,4]
[327991240,1716763849398,-500.0,0.00027397,4]
[327991241,1716763849411,-214.407712,0.00027397,7]
[327991242,1716763849420,-500.0,0.00027397,4]
[327991243,1716763849429,-214.407712,0.00027397,7]
[327991244,1716763849438,-500.0,0.00027397,4]
[327991245,1716763849449,-500.0,0.00027397,4]
[327991246,1716763849458,-648.45,0.00027397,4]
[327991247,1716763849469,-580.0,0.00027397,4]
[327991248,1716763849480,-500.0,0.00027397,4]
[327991249,1716763849489,-500.0,0.00027397,4]
[327991250,1716763849498,-500.0,0.00027397,4]
[327991251,1716763849507,-500.0,0.00027397,4]
[327991252,1716763849516,-207.79779145,0.00027397,4]
[327991253,1716763849524,-500.0,0.00027397,4]
[327991254,1716763849534,-499.0,0.00027397,4]
[327991255,1716763849542,-614.98258855,0.00027397,4]
[327991256,1716763849552,-500.0,0.00027397,4]
[327991257,1716763849561,-500.0,0.00027397,4]
[327991258,1716763849570,-151.0,0.00027397,7]
[327991259,1716763849580,-151.0,0.00027397,7]
[327991260,1716763849589,-500.0,0.00027397,4]
[327991261,1716763849597,-500.0,0.00027397,4]
[327991262,1716763849606,-500.0,0.00027397,4]
[327991263,1716763849616,-199.00059321,0.00027397,2]
[327991264,1716763849625,-500.0,0.00027397,4]
[327991265,1716763849634,-500.0,0.00027397,4]
[327991266,1716763849643,-500.0,0.00027397,4]
[327991267,1716763849653,-500.0,0.00027397,4]
[327991268,1716763849662,-500.0,0.00027397,4]
[327991269,1716763849672,-500.0,0.00027397,4]
[327991270,1716763849681,-286.41151557,0.00027397,4]
[327991271,1716763849690,-500.0,0.00027397,4]
[327991272,1716763849699,-151.0,0.00027397,7]
[327991273,1716763849708,-500.0,0.00027397,4]
[327991274,1716763849718,-500.0,0.00027397,4]
[327991275,1716763849727,-500.0,0.00027397,4]
[327991276,1716763849737,-500.0,0.00027397,4]
[327991277,1716763849746,-500.0,0.00027397,4]
[327991278,1716763849755,-500.0,0.00027397,4]
[327991279,1716763849765,-500.0,0.00027397,4]
[327991280,1716763849774,-500.0,0.00027397,4]
[327991281,1716763849783,-500.0,0.00027397,4]
[327991282,1716763849793,-500.0,0.00027397,4]
[327991283,1716763849802,-500.0,0.00027397,4]
[327991284,1716763849811,-500.0,0.00027397,4]
[327991285,1716763849821,-528.76640679,0.00027397,4]
[327991286,1716763849831,-500.0,0.00027397,4]
[327991287,1716763849840,-500.0,0.00027397,4]
[327991288,1716763849849,-500.0,0.00027397,4]
[327991289,1716763849858,-500.0,0.00027397,4]
[327991290,1716763849868,-500.0,0.00027397,4]
[327991291,1716763849878,-533.98,0.00027397,4]
[327991292,1716763849888,-500.0,0.00027397,4]
[327991293,1716763849898,-500.0,0.00027397,4]
[327991294,1716763849908,-500.0,0.00027397,4]
[327991295,1716763849918,-500.0,0.00027397,4]
[327991296,1716763849927,-500.0,0.00027397,4]
[327991297,1716763849936,-500.0,0.00027397,4]
[327991298,1716763849947,-500.0,0.00027397,4]
[327991299,1716763849956,-500.0,0.00027397,4]
[327991300,1716763849965,-500.0,0.00027397,4]
[327991301,1716763849975,-571.37840718,0.00027397,4]
[327991302,1716763849984,-500.0,0.00027397,4]
[327991303,1716763849993,-500.0,0.00027397,4]
[327991304,1716763850003,-414.51103705,0.00027397,4]
[327991305,1716763850012,-500.0,0.00027397,4]
[327991306,1716763850021,-500.0,0.00027397,4]
[327991307,1716763850031,-500.0,0.00027397,4]
[327991308,1716763850040,-500.0,0.00027397,4]
[327991309,1716763850049,-500.0,0.00027397,4]
[327991310,1716763850059,-151.0,0.00027397,7]
[327991311,1716763850068,-151.0,0.00027397,7]
[327991312,1716763850078,-500.0,0.00027397,4]
[327991313,1716763850087,-500.0,0.00027397,4]
[327991314,1716763850096,-500.0,0.00027397,4]
[327991315,1716763850106,-500.0,0.00027397,4]
[327991316,1716763850115,-512.34035617,0.00027397,4]
[327991317,1716763850124,-500.0,0.00027397,4]
[327991318,1716763850134,-500.0,0.00027397,4]
[327991319,1716763850143,-512.10357826,0.00027397,4]
[327991320,1716763850153,-500.0,0.00027397,4]
[327991321,1716763850162,-500.0,0.00027397,4]
[327991322,1716763850171,-500.0,0.00027397,4]
[327991323,1716763850181,-150.0,0.00027397,4]
[327991324,1716763850190,-500.0,0.00027397,4]
[327991325,1716763850199,-500.0,0.00027397,4]
[327991326,1716763850208,-500.0,0.00027397,4]
[327991327,1716763850217,-500.0,0.00027397,4]
[327991328,1716763850227,-500.0,0.00027397,4]
[327991329,1716763850236,-500.0,0.00027397,4]
[327991330,1716763850246,-500.0,0.00027397,4]
[327991331,1716763850255,-500.0,0.00027397,4]
[327991332,1716763850264,-500.0,0.00027397,4]
[327991333,1716763850273,-500.0,0.00027397,4]
[327991334,1716763850282,-500.0,0.00027397,4]
[327991335,1716763850292,-586.88362516,0.00027397,4]
[327991336,1716763850302,-500.0,0.00027397,4]
[327991337,1716763850311,-500.0,0.00027397,4]
[327991338,1716763850320,-500.0,0.00027397,4]
[327991339,1716763850330,-500.0,0.00027397,4]
[327991340,1716763850339,-500.0,0.00027397,4]
[327991341,1716763850349,-500.0,0.00027397,4]
[327991342,1716763850358,-500.0,0.00027397,4]
[327991343,1716763850368,-500.0,0.00027397,4]
[327991344,1716763850377,-500.0,0.00027397,4]
[327991345,1716763850386,-500.0,0.00027397,4]
[327991346,1716763850396,-515.91887178,0.00027397,4]
[327991347,1716763850410,-541.01834571,0.00027397,4]
[327991348,1716763850419,-510.64580412,0.00027397,4]
[327991349,1716763850428,-500.0,0.00027397,4]
[327991350,1716763850437,-500.0,0.00027397,4]
[327991351,1716763850448,-500.0,0.00027397,4]
[327991352,1716763850458,-571.77217391,0.00027397,4]
[327991353,1716763850467,-630.08416668,0.00027397,4]
[327991354,1716763850478,-224.39685275,0.00027397,4]
[327991355,1716763850487,-624.8809421,0.00027397,4]
[327991356,1716763850496,-500.0,0.00027397,4]
[327991357,1716763850506,-500.0,0.00027397,4]
[327991358,1716763850515,-500.0,0.00027397,4]
[327991359,1716763850525,-500.0,0.00027397,4]
[327991360,1716763850534,-548.66005183,0.00027397,4]
[327991361,1716763850544,-500.0,0.00027397,4]
[327991362,1716763850553,-500.0,0.00027397,4]
[327991363,1716763850562,-500.0,0.00027397,4]
[327991364,1716763850572,-500.0,0.00027397,4]
[327991365,1716763850586,-768.66,0.00027397,4]
[327991366,1716763850594,-500.0,0.00027397,4]
[327991367,1716763850603,-500.0,0.00027397,4]
[327991368,1716763850612,-500.0,0.00027397,4]
[327991369,1716763850622,-500.0,0.00027397,4]
[327991370,1716763850631,-500.0,0.00027397,4]
[327991371,1716763850640,-500.0,0.00027397,4]
[327991372,1716763850649,-600.27296182,0.00027397,4]
[327991373,1716763850659,-500.15,0.00027397,4]
[327991374,1716763850668,-500.0,0.00027397,4]
[327991375,1716763850677,-543.04665515,0.00027397,4]
[327991376,1716763850686,-500.0,0.00027397,4]
[327991377,1716763850696,-500.0,0.00027397,4]
[327991378,1716763850706,-515.90114429,0.00027397,4]
[327991379,1716763850715,-500.0,0.00027397,4]
[327991380,1716763850725,-500.0,0.00027397,4]
[327991381,1716763850734,-443.59014799,0.00027397,4]
[327991382,1716763850744,-500.0,0.00027397,4]
[327991383,1716763850753,-500.0,0.00027397,4]
[327991384,1716763850762,-500.0,0.00027397,4]
[327991385,1716763850771,-500.0,0.00027397,4]
[327991386,1716763850781,-500.0,0.00027397,4]
[327991387,1716763850790,-500.0,0.00027397,4]
[327991388,1716763850799,-500.0,0.00027397,4]
[327991389,1716763850809,-500.0,0.00027397,4]
[327991390,1716763850818,-500.0,0.00027397,4]
[327991391,1716763850828,-500.0,0.00027397,4]
[327991392,1716763850837,-500.0,0.00027397,4]
[327991393,1716763850847,-500.0,0.00027397,4]
[327991394,1716763850856,-500.0,0.00027397,4]
[327991395,1716763850865,-500.0,0.00027397,4]
[327991396,1716763850875,-500.0,0.00027397,4]
[327991397,1716763850885,-500.0,0.00027397,4]
[327991398,1716763850894,-500.0,0.00027397,4]
[327991399,1716763850904,-500.0,0.00027397,4]
[327991400,1716763850913,-500.0,0.00027397,4]
[327991401,1716763850922,-568.57,0.00027397,4]
[327991402,1716763850932,-500.0,0.00027397,4]
[327991403,1716763850941,-500.0,0.00027397,4]
[327991404,1716763850950,-363.38576047,0.00027397,4]
[327991405,1716763850960,-500.0,0.00027397,4]
[327991406,1716763850969,-500.0,0.00027397,4]
[327991407,1716763850979,-500.0,0.00027397,4]
[327991408,1716763850989,-500.0,0.00027397,4]
[327991409,1716763850998,-500.0,0.00027397,4]
[327991410,1716763851008,-500.0,0.00027397,4]
[327991411,1716763851017,-500.0,0.00027397,4]
[327991412,1716763851027,-500.0,0.00027397,4]
[327991413,1716763851037,-500.0,0.00027397,4]
[327991414,1716763851047,-500.0,0.00027397,4]
[327991415,1716763851056,-500.0,0.00027397,4]
[327991416,1716763851066,-500.0,0.00027397,4]
[327991417,1716763851077,-500.0,0.00027397,4]
[327991418,1716763851086,-544.8,0.00027397,4]
[327991419,1716763851095,-520.72031326,0.00027397,4]
[327991420,1716763851105,-500.0,0.00027397,4]
[327991421,1716763851115,-500.0,0.00027397,4]
[327991422,1716763851124,-500.0,0.00027397,4]
[327991423,1716763851133,-500.0,0.00027397,4]
[327991424,1716763851142,-500.0,0.00027397,4]
[327991425,1716763851152,-500.0,0.00027397,4]
[327991426,1716763851162,-500.0,0.00027397,4]
[327991427,1716763851171,-500.0,0.00027397,4]
[327991428,1716763851181,-500.0,0.00027397,4]
[327991429,1716763851191,-500.0,0.00027397,4]
[327991430,1716763851200,-500.0,0.00027397,4]
[327991431,1716763851209,-500.0,0.00027397,4]
[327991432,1716763851219,-500.0,0.00027397,4]
[327991433,1716763851228,-500.0,0.00027397,4]
[327991434,1716763851238,-500.0,0.00027397,4]
[327991435,1716763851247,-500.0,0.00027397,4]
[327991436,1716763851258,-500.0,0.00027397,4]
[327991437,1716763851267,-500.0,0.00027397,4]
[327991438,1716763851277,-500.0,0.00027397,4]
[327991439,1716763851286,-500.0,0.00027397,4]
[327991440,1716763851296,-602.9,0.00027397,4]
[327991441,1716763851306,-500.0,0.00027397,4]
[327991442,1716763851315,-500.0,0.00027397,4]
[327991443,1716763851326,-618.67,0.00027397,4]
[327991444,1716763851335,-500.0,0.00027397,4]
[327991445,1716763851345,-500.0,0.00027397,4]
[327991446,1716763851354,-500.0,0.00027397,4]
[327991447,1716763851364,-519.48,0.00027397,4]
[327991448,1716763851373,-500.0,0.00027397,4]
[327991449,1716763851382,-500.0,0.00027397,4]
[327991450,1716763851392,-500.0,0.00027397,4]
[327991451,1716763851405,-500.0,0.00027397,4]
[327991452,1716763851415,-500.0,0.00027397,4]
[327991453,1716763851425,-500.0,0.00027397,4]
[327991454,1716763851435,-500.0,0.00027397,4]
[327991455,1716763851446,-500.0,0.00027397,4]
[327991456,1716763851456,-500.0,0.00027397,4]
[327991457,1716763851465,-500.0,0.00027397,4]
[327991458,1716763851475,-500.0,0.00027397,4]
[327991459,1716763851486,-579.72,0.00027397,4]
[327991460,1716763851496,-470.0,0.00027397,4]
[327991461,1716763851506,-500.0,0.00027397,4]
[327991462,1716763851516,-500.0,0.00027397,4]
[327991463,1716763851526,-500.0,0.00027397,4]
[327991464,1716763851535,-500.0,0.00027397,4]
[327991465,1716763851545,-500.0,0.00027397,4]
[327991466,1716763851555,-500.0,0.00027397,4]
[327991467,1716763851564,-500.0,0.00027397,4]
[327991468,1716763851575,-500.0,0.00027397,4]
[327991469,1716763851584,-520.87829229,0.00027397,4]
[327991470,1716763851594,-547.87,0.00027397,4]
[327991471,1716763851604,-500.0,0.00027397,4]
[327991472,1716763851614,-500.0,0.00027397,4]
[327991473,1716763851624,-500.0,0.00027397,4]
[327991474,1716763851633,-626.04,0.00027397,4]
[327991475,1716763851643,-500.0,0.00027397,4]
[327991476,1716763851653,-500.0,0.00027397,4]
[327991477,1716763851662,-500.0,0.00027397,4]
[327991478,1716763851672,-500.0,0.00027397,4]
[327991479,1716763851682,-500.0,0.00027397,4]
[327991480,1716763851691,-387.65365726,0.00027397,4]
[327991481,1716763851701,-527.8,0.00027397,4]
[327991482,1716763851711,-500.0,0.00027397,4]
[327991483,1716763851721,-500.0,0.00027397,4]
[327991484,1716763851731,-500.0,0.00027397,4]
[327991485,1716763851742,-500.0,0.00027397,4]
[327991486,1716763851752,-500.0,0.00027397,4]
[327991487,1716763851885,-500.0,0.00027397,4]
[327991488,1716763851895,-500.0,0.00027397,4]
[327991489,1716763851904,-500.0,0.00027397,4]
[327991490,1716763851914,-500.0,0.00027397,4]
[327991491,1716763851923,-500.0,0.00027397,4]
[327991492,1716763851933,-500.0,0.00027397,4]
[327991493,1716763851943,-500.0,0.00027397,4]